bitfinex/quotes_ETHUSD_20250703
["timestamp","ask_amount","ask_price","bid_price","bid_amount"]
[1751537212808,46.92767193,2601.7,2601.6,0.02]
[1751537213608,20.64179324,2601.7,2601.6,0.02]
[1751537213928,24.48543393,2601.7,2601.6,0.02]
[1751537215314,23.56993562,2601.7,2601.6,0.02]
[1751537217007,19.72629493,2601.7,2601.6,0.02]
[1751537217339,23.56993562,2601.7,2601.6,0.02]
[1751537217842,19.72629493,2601.7,2601.6,0.02]
[1751537224452,8.6415,2601.7,2601.6,0.02]
[1751537229824,8.182,2601.7,2601.6,0.02]
[1751537235928,15.28452318,2601.7,2601.6,0.02]
[1751537236348,16.20428958,2601.7,2601.6,0.02]
[1751537236855,9.1017664,2601.7,2601.6,0.02]
[1751537237162,8.182,2601.7,2601.6,0.02]
[1751537238268,8.6415,2601.7,2601.6,0.02]
[1751537238561,9.56085384,2601.7,2601.6,0.02]
[1751537239258,8.6415,2601.7,2601.6,0.02]
[1751537239436,9.56085384,2601.7,2601.6,0.02]
[1751537240465,13.40449453,2601.7,2601.6,0.02]
[1751537241769,9.56085384,2601.7,2601.6,0.02]
[1751537241966,13.40449453,2601.7,2601.6,0.02]
[1751537245880,13.76476773,2601.7,2601.6,0.02]
[1751537248463,13.76475575,2601.7,2601.6,0.02]
[1751537248875,20.86727893,2601.7,2601.6,0.02]
[1751537250189,20.86726122,2601.7,2601.6,0.02]
[1751537250866,20.86725729,2601.7,2601.6,0.02]
[1751537251771,3.84378843,2601.6,2601.4,0.01]
[1751537251961,28.07323936,2601.5,2601.4,0.01]
[1751537252281,28.02526761,2601.5,2601.4,0.01]
[1751537252469,4.30402731,2601.1,2601.0,0.01]
[1751537252791,19.80476182,2601.1,2601.0,0.01]
[1751537252964,20.67614391,2601.1,2601.0,0.01]
[1751537253286,20.67593692,2601.1,2601.0,0.01]
[1751537254163,20.67593558,2601.1,2601.0,0.01]
[1751537255916,16.83140827,2601.1,2601.0,0.01]
[1751537256460,16.37190827,2601.1,2601.0,0.01]
[1751537257663,16.01187702,2601.1,2601.0,0.01]
[1751537257986,16.37153234,2601.1,2601.0,0.01]
[1751537266502,15.4521785,2601.1,2601.0,0.01]
[1751537272281,16.37127126,2601.1,2601.0,0.01]
[1751537275083,16.37184022,2601.1,2601.0,0.01]
[1751537280381,20.21636753,2601.1,2601.0,0.01]
[1751537280805,16.37184022,2601.1,2601.0,0.01]
[1751537281005,20.21636753,2601.1,2601.0,0.01]
[1751537281309,16.37184022,2601.1,2601.0,0.01]
[1751537281704,16.37221196,2601.1,2601.0,0.01]
[1751537282408,20.21673927,2601.1,2601.0,0.01]
[1751537284116,16.37221196,2601.1,2601.0,0.01]
[1751537284411,20.21673927,2601.1,2601.0,0.01]
[1751537284780,16.37221196,2601.1,2601.0,0.01]
[1751537284977,20.21673927,2601.1,2601.0,0.01]
[1751537286111,16.37221196,2601.1,2601.0,0.01]
[1751537286319,20.21673927,2601.1,2601.0,0.01]
[1751537286911,16.37221196,2601.1,2601.0,0.01]
[1751537288301,9.26968878,2601.1,2601.0,0.01]
[1751537289474,8.35059602,2601.1,2601.0,0.01]
[1751537290339,9.26968878,2601.1,2601.0,0.01]
[1751537291099,8.35059602,2601.1,2601.0,0.01]
[1751537291299,9.26968878,2601.1,2601.0,0.01]
[1751537291513,8.35059602,2601.1,2601.0,0.01]
[1751537291711,9.26968878,2601.1,2601.0,0.01]
[1751537292131,8.35059602,2601.1,2601.0,0.01]
[1751537292340,9.26968878,2601.1,2601.0,0.01]
[1751537292737,8.35059602,2601.1,2601.0,0.01]
[1751537292907,9.26968878,2601.1,2601.0,0.01]
[1751537293304,8.35059602,2601.1,2601.0,0.01]
[1751537293603,9.26968878,2601.1,2601.0,0.01]
[1751537294020,8.35058448,2601.1,2601.0,0.01]
[1751537294225,9.26967724,2601.1,2601.0,0.01]
[1751537294635,8.35058448,2601.1,2601.0,0.01]
[1751537294939,9.26967724,2601.1,2601.0,0.01]
[1751537295397,8.35058448,2601.1,2601.0,0.01]
[1751537295598,9.26967724,2601.1,2601.0,0.01]
[1751537295802,8.35058448,2601.1,2601.0,0.01]
[1751537296037,9.26967724,2601.1,2601.0,0.01]
[1751537296210,9.26967724,2601.1,2601.0,0.7727]
[1751537296799,8.35058448,2601.1,2601.0,0.7727]
[1751537298111,0.192,2601.2,2601.0,0.7727]
[1751537300744,0.06797175,2601.4,2601.0,0.7727]
[1751537300971,0.25997175,2601.4,2601.1,0.8319]
[1751537301545,0.212,2601.4,2601.1,0.8319]
[1751537301717,0.04797175,2601.3,2601.1,0.8319]
[1751537302832,0.23997175,2601.3,2601.1,0.8319]
[1751537303034,0.192,2601.3,2601.1,0.8319]
[1751537305160,7.15049493,2601.2,2601.0,0.01]
[1751537306028,8.06747679,2601.2,2601.0,0.01]
[1751537306240,7.10252318,2601.2,2601.0,0.01]
[1751537306440,7.15049493,2601.2,2601.0,0.01]
[1751537306642,0.04797175,2601.2,2601.0,0.01]
[1751537307362,0.40772588,2601.3,2601.0,0.01]
[1751537307657,0.04797175,2601.3,2601.0,0.01]
[1751537308776,0.40774434,2601.3,2601.0,0.01]
[1751537309133,0.04797175,2601.3,2601.0,0.8188]
[1751537309334,0.192,2601.1,2601.0,0.8188]
[1751537316675,0.192,2601.1,2601.0,0.01]
[1751537317797,0.55199701,2601.1,2601.0,0.01]
[1751537318291,0.192,2601.1,2601.0,0.01]
[1751537318502,8.58996876,2601.1,2601.0,0.01]
[1751537318650,8.54199701,2601.1,2601.0,0.01]
[1751537319971,12.38652432,2601.1,2601.0,0.01]
[1751537320171,12.84602432,2601.1,2601.0,0.01]
[1751537320572,13.76274276,2601.1,2601.0,0.01]
[1751537322070,13.40274575,2601.1,2601.0,0.01]
[1751537322967,35.84498375,2601.1,2601.0,0.01]
[1751537323467,11.4071418,2600.7,2600.6,0.01]
[1751537323910,12.32346488,2600.7,2600.6,0.01]
[1751537325382,11.4071418,2600.7,2600.6,0.01]
[1751537326172,34.76508406,2600.7,2600.6,0.01]
[1751537327077,12.32284606,2600.7,2600.6,0.01]
[1751537327294,34.76420317,2600.7,2600.6,0.01]
[1751537327498,12.32196517,2600.7,2600.6,0.01]
[1751537329719,8.47684655,2600.7,2600.6,0.01]
[1751537329883,7.92142188,2600.7,2600.6,0.01]
[1751537330077,8.83624525,2600.7,2600.6,0.01]
[1751537330274,7.92142188,2600.7,2600.6,0.01]
[1751537330477,12.68136387,2600.7,2600.6,0.01]
[1751537333173,20.66136387,2600.7,2600.6,0.01]
[1751537335316,16.81609149,2600.7,2600.6,0.01]
[1751537335543,16.35659149,2600.7,2600.6,0.01]
[1751537335680,9.25406831,2600.7,2600.6,0.01]
[1751537336082,8.33924494,2600.7,2600.6,0.01]
[1751537336426,9.25406831,2600.7,2600.6,0.01]
[1751537336586,8.33924494,2600.7,2600.6,0.01]
[1751537336786,12.64386356,2600.7,2600.6,0.01]
[1751537337084,13.55745213,2600.7,2600.6,0.01]
[1751537340706,13.5574177,2600.7,2600.6,0.01]
[1751537343096,26.74700447,2600.6,2600.5,0.01]
[1751537343318,4.30506222,2600.4,2600.0,0.01]
[1751537343530,42.23700566,2600.4,2600.0,0.01]
[1751537343706,43.10262248,2600.4,2600.0,0.01]
[1751537344493,47.15762248,2600.4,2600.0,0.01]
[1751537346136,47.15794582,2600.4,2600.0,0.01]
[1751537346512,9.71262242,2600.4,2600.0,0.01]
[1751537346710,9.25312242,2600.4,2600.0,0.01]
[1751537347332,13.09868464,2600.4,2600.0,0.01]
[1751537348321,13.55818464,2600.4,2600.0,0.01]
[1751537348738,36.00042264,2600.4,2600.0,0.01]
[1751537349047,12.28550592,2600.1,2600.0,0.01]
[1751537349232,43.10338952,2600.1,2600.0,0.01]
[1751537350552,47.15838952,2600.1,2600.0,0.01]
[1751537350737,26.28839184,2600.0,2599.9,0.01]
[1751537350919,32.26801426,2600.0,2599.9,0.01]
[1751537351815,28.42186042,2600.0,2599.9,0.01]
[1751537352145,31.4693836,2600.0,2599.9,0.01]
[1751537352445,31.46962113,2600.0,2599.9,0.01]
[1751537353145,35.31577497,2600.0,2599.9,0.01]
[1751537353349,31.46962113,2600.0,2599.9,0.01]
[1751537353549,35.31577497,2600.0,2599.9,0.01]
[1751537353750,31.46962113,2600.0,2599.9,0.01]
[1751537355065,9.44535995,2600.0,2599.9,0.01]
[1751537355224,8.53177138,2600.0,2599.9,0.01]
[1751537355424,9.44535995,2600.0,2599.9,0.01]
[1751537355619,8.53177138,2600.0,2599.9,0.01]
[1751537356641,15.63429456,2600.0,2599.9,0.01]
[1751537356865,16.54788313,2600.0,2599.9,0.01]
[1751537357768,17.00738313,2600.0,2599.9,0.01]
[1751537358333,17.00703406,2600.0,2599.9,0.01]
[1751537361066,16.54753406,2600.0,2599.9,0.01]
[1751537361276,20.3936879,2600.0,2599.9,0.01]
[1751537361477,32.442238,2599.8,2599.2,0.7702]
[1751537361684,7.10252318,2599.6,2599.2,0.7702]
[1751537361986,8.37554625,2599.6,2599.2,0.7702]
[1751537362997,9.24302307,2599.6,2599.5,0.7802]
[1751537363152,8.3294345,2599.6,2599.5,0.7802]
[1751537365052,7.97,2599.6,2599.5,0.7802]
[1751537366572,8.32986479,2599.6,2599.5,0.7802]
[1751537368487,8.32986479,2599.6,2599.5,0.01]
[1751537370158,3.84689363,2599.5,2598.9,0.01]
[1751537370359,4.03948907,2599.1,2598.9,0.01]
[1751537370564,31.27957454,2599.0,2598.9,0.01]
[1751537370793,35.07923649,2599.0,2598.9,0.01]
[1751537371580,31.23160279,2599.0,2598.9,0.01]
[1751537371769,8.32986479,2599.0,2598.9,0.01]
[1751537373581,7.97,2599.0,2598.9,0.01]
[1751537373894,8.32978899,2599.0,2598.9,0.01]
[1751537376412,35.07916069,2599.0,2598.9,0.01]
[1751537376596,35.99406746,2599.0,2598.9,0.01]
[1751537376906,9.70419576,2599.0,2598.9,0.01]
[1751537378011,9.24469576,2599.0,2598.9,0.01]
[1751537378214,9.24434264,2599.0,2598.9,0.01]
[1751537378385,8.32978899,2599.0,2598.9,0.01]
[1751537381615,8.32978899,2599.0,2598.9,0.769]
[1751537382113,7.97,2599.0,2598.9,0.769]
[1751537384592,0.192,2599.0,2598.9,0.769]
[1751537395364,0.192,2599.3,2598.9,0.769]
[1751537395638,8.182,2599.5,2599.1,0.192]
[1751537395837,8.182,2599.5,2599.2,0.7925]
[1751537396410,0.04797175,2599.4,2599.2,0.7925]
[1751537397949,0.04797175,2599.4,2599.0,0.7513]
[1751537398129,0.40767149,2599.4,2599.0,0.7513]
[1751537398332,7.97,2599.3,2599.0,0.7513]
[1751537398652,0.04797175,2599.2,2599.0,0.7513]
[1751537400729,0.04797175,2599.2,2598.9,0.01]
[1751537401048,0.40772763,2599.2,2598.9,0.01]
[1751537403062,0.192,2599.0,2598.9,0.01]
[1751537403263,0.192,2599.0,2598.9,0.7666]
[1751537403568,7.97,2599.3,2598.9,0.7666]
[1751537403748,7.97,2599.3,2599.0,0.8132]
[1751537406165,0.192,2599.0,2598.9,0.01]
[1751537408339,8.47747175,2599.0,2598.9,0.01]
[1751537408572,9.70648714,2599.0,2598.9,0.01]
[1751537411480,9.24698714,2599.0,2598.9,0.01]
[1751537411673,8.32992729,2599.0,2598.9,0.01]
[1751537414444,0.91705985,2599.0,2598.9,0.7713]
[1751537414646,0.36009146,2599.4,2598.9,0.7713]
[1751537414876,0.02,2599.5,2599.1,0.7877]
[1751537418401,0.212,2599.5,2599.1,0.9797]
[1751537420689,0.212,2599.5,2599.2,1.2959248]
[1751537420889,0.212,2599.5,2599.2,0.8132]
[1751537426913,0.02,2599.5,2599.4,0.8007]
[1751537427875,0.02,2599.5,2599.4,0.9927]
[1751537428069,0.02,2599.5,2599.4,4.83974162]
[1751537428272,0.02,2599.5,2599.4,5.7084408]
[1751537428675,0.02,2599.5,2599.4,1.86139918]
[1751537429407,0.02,2599.5,2599.4,5.7084408]
[1751537429702,0.02,2599.5,2599.4,1.86139918]
[1751537430268,0.02,2599.5,2599.4,0.9927]
[1751537431895,0.212,2599.5,2599.1,0.7637]
[1751537435886,0.212,2599.5,2599.1,0.80217485]
[1751537436989,0.02,2599.5,2599.4,0.7716]
[1751537437196,0.02,2599.5,2599.4,1.2526929]
[1751537437397,0.02,2599.5,2599.4,0.7716]
[1751537439327,0.02,2599.5,2599.3,0.192]
[1751537440729,0.02,2599.5,2599.2,0.8292]
[1751537440893,0.02,2599.5,2599.2,1.0212]
[1751537442328,0.02,2600.0,2599.7,3.84649169]
[1751537442513,0.02,2600.0,2599.9,3.84630178]
[1751537442694,0.02,2600.6,2600.0,3.84614117]
[1751537442891,0.02,2600.6,2600.2,11.09998855]
[1751537443093,0.02,2600.6,2600.4,0.8017]
[1751537443301,0.02,2600.6,2600.5,4.68556848]
[1751537443592,0.02,2601.0,2600.9,3.84482294]
[1751537443815,0.02,2601.0,2600.9,15.74651149]
[1751537447940,0.02,2601.0,2600.9,11.90168855]
[1751537448156,0.02,2601.0,2600.9,0.8017]
[1751537452434,0.02,2601.0,2600.9,0.9937]
[1751537453217,0.02,2601.0,2600.9,0.192]
[1751537454435,0.02,2601.0,2600.6,0.7771]
[1751537454619,0.02,2601.0,2600.8,0.192]
[1751537455649,0.02,2601.0,2600.5,0.01]
[1751537455945,0.02,2601.0,2600.6,0.192]
[1751537456511,0.02,2601.0,2600.5,0.202]
[1751537456512,0.212,2601.0,2600.5,0.202]
[1751537459247,0.212,2601.0,2600.6,0.03845266]
[1751537459415,0.212,2601.0,2600.5,0.202]
[1751537459617,0.02,2601.0,2600.7,0.192]
[1751537459845,0.02,2601.0,2600.8,0.0384497]
[1751537460240,0.02,2601.0,2600.7,0.192]
[1751537460945,0.02,2601.0,2600.8,0.8268]
[1751537464625,0.02,2601.0,2600.9,1.38467886]
[1751537476571,0.02,2601.0,2600.9,0.192]
[1751537483575,0.02,2601.0,2600.9,7.29455966]
[1751537483755,0.02,2601.0,2600.9,8.12455966]
[1751537485211,0.02,2601.0,2600.9,1.022]
[1751537490099,0.02,2601.0,2600.9,0.192]
[1751537494607,0.02,2601.0,2600.9,0.23044822]
[1751537495697,0.02,2601.0,2600.9,0.192]
[1751537501532,0.02,2601.0,2600.8,0.192]
[1751537502106,0.4595,2600.9,2600.5,0.01]
[1751537502299,0.6515,2600.9,2600.5,0.01]
[1751537512097,0.4595,2600.6,2600.5,0.01]
[1751537517318,0.192,2600.7,2600.5,0.01]
[1751537517622,0.4595,2600.9,2600.5,0.01]
[1751537517835,0.6515,2600.9,2600.5,0.01]
[1751537521659,0.4595,2600.9,2600.5,0.01]
[1751537521956,0.6515,2600.6,2600.5,0.01]
[1751537523166,15.72405966,2600.6,2600.5,0.01]
[1751537523675,8.6215,2600.6,2600.5,0.01]
[1751537534283,8.6415,2600.6,2600.5,0.01]
[1751537541512,9.0016417,2600.6,2600.5,0.01]
[1751537542065,8.182,2600.6,2600.5,0.01]
[1751537542279,0.02,2600.6,2600.5,0.8356]
[1751537542586,0.02,2600.6,2600.5,1.82526153]
[1751537542976,0.02,2600.6,2600.5,5.67067587]
[1751537543290,0.02,2600.6,2600.5,1.82526153]
[1751537544497,0.02,2600.6,2600.5,1.0276]
[1751537545793,0.02,2600.6,2600.5,1.06605414]
[1751537548019,0.02,2600.6,2600.5,4.91146848]
[1751537548867,0.02,2600.6,2600.5,1.06605414]
[1751537549071,0.02,2600.6,2600.5,1.0276]
[1751537549291,0.02,2600.6,2600.5,2.22516428]
[1751537549794,0.02,2600.6,2600.5,1.0276]
[1751537553303,0.02,2600.6,2600.5,1.06605414]
[1751537553799,0.02,2600.6,2600.5,1.0276]
[1751537554162,0.02,2600.6,2600.5,1.06605414]
[1751537554601,0.02,2600.6,2600.5,4.91146848]
[1751537554900,0.02,2600.6,2600.5,6.49743878]
[1751537555200,0.02,2600.6,2600.5,6.45898464]
[1751537555568,0.02,2600.6,2600.5,6.49743878]
[1751537556179,0.02,2600.6,2600.5,13.59999844]
[1751537556399,0.02,2600.6,2600.5,13.5615443]
[1751537559100,0.02,2601.0,2600.9,4.62222294]
[1751537559272,0.02,2601.0,2600.9,5.66093929]
[1751537559988,0.02,2601.0,2600.9,12.80194717]
[1751537560295,0.02,2601.0,2600.9,12.76349895]
[1751537569729,0.02,2601.4,2601.3,4.61023173]
[1751537569909,0.02,2601.4,2601.3,11.9432337]
[1751537570215,0.02,2601.4,2601.3,13.77539015]
[1751537572691,0.02,2601.5,2601.4,3.84408395]
[1751537573020,0.02,2601.5,2601.4,4.62938395]
[1751537573219,0.02,2601.5,2601.4,4.66782478]
[1751537573520,0.02,2601.5,2601.4,4.62938395]
[1751537573722,0.02,2601.5,2601.4,6.77769628]
[1751537577923,0.02,2601.5,2601.4,6.81613711]
[1751537579626,0.02,2601.7,2601.6,3.84378843]
[1751537579787,0.02,2601.7,2601.6,11.81138597]
[1751537579991,0.02,2601.7,2601.6,11.96494809]
[1751537580188,0.02,2601.7,2601.6,14.14507298]
[1751537581924,0.02,2602.0,2601.8,3.84349296]
[1751537582124,0.02,2602.0,2601.8,10.98448754]
[1751537582325,0.02,2602.0,2601.8,11.13805262]
[1751537582794,0.02,2602.0,2601.9,3.84334524]
[1751537582993,0.02,2602.0,2601.9,6.54394599]
[1751537583435,0.02,2602.0,2601.9,6.58237944]
[1751537584249,0.02,2602.5,2602.4,4.66070682]
[1751537584396,0.02,2602.5,2602.4,4.69913288]
[1751537584595,0.02,2602.5,2602.4,4.89113288]
[1751537584799,0.02,2602.5,2602.4,6.47477498]
[1751537585240,0.02,2602.6,2602.5,3.84245917]
[1751537585395,0.02,2603.0,2602.9,3.84186868]
[1751537585596,0.02,2603.0,2602.9,3.88028736]
[1751537585924,0.02,2603.0,2602.9,4.89038736]
[1751537586126,0.02,2603.0,2602.9,2.59359379]
[1751537586318,0.02,2603.0,2602.9,6.43546247]
[1751537586695,0.02,2603.0,2602.9,2.59359379]
[1751537586894,0.02,2603.0,2602.9,1.77549379]
[1751537587135,0.02,2603.0,2602.9,0.192]
[1751537587336,0.02,2603.0,2602.9,0.23041868]
[1751537588724,0.02,2603.0,2602.9,4.07228736]
[1751537589328,0.02,2603.0,2602.9,0.23041868]
[1751537589626,0.02,2603.0,2602.9,0.192]
[1751537589900,0.02,2603.0,2602.9,1.05920384]
[1751537590326,0.02,2603.0,2602.9,4.9394912]
[1751537590633,0.02,2603.0,2602.9,4.7474912]
[1751537591437,0.02,2603.0,2602.9,4.70907252]
[1751537591734,0.02,2603.0,2602.9,4.7474912]
[1751537592913,0.02,2603.0,2602.9,5.03562105]
[1751537596548,0.02,2603.0,2602.9,5.82382105]
[1751537599356,0.4795,2603.6,2603.3,3.84113695]
[1751537599643,0.02,2603.6,2603.4,4.2635914]
[1751537599854,0.02,2603.6,2603.5,3.84098329]
[1751537600050,0.02,2603.6,2603.5,4.63248329]
[1751537600728,0.02,2603.6,2603.5,4.82448329]
[1751537601314,0.02,2603.6,2603.5,4.86289312]
[1751537601513,0.02,2603.6,2603.5,6.48195641]
[1751537603814,0.02,2604.1,2603.9,3.84039325]
[1751537604011,0.02,2604.1,2604.0,11.97190788]
[1751537604245,0.02,2604.1,2604.0,11.93350543]
[1751537606748,0.02,2604.1,2604.0,11.74150543]
[1751537606947,0.02,2604.1,2604.0,13.29969454]
[1751537609968,0.02,2604.5,2604.3,3.83969821]
[1751537610129,0.02,2604.5,2604.4,0.03839655]
[1751537610329,0.02,2604.5,2604.4,10.98061217]
[1751537610657,0.02,2604.5,2604.4,10.94221562]
[1751537610853,0.02,2604.5,2604.4,13.249707]
[1751537612766,0.02,2604.5,2604.4,9.41005104]
[1751537612967,0.02,2604.5,2604.4,5.31784734]
[1751537613864,0.02,2604.5,2604.4,5.60185394]
[1751537614073,0.02,2604.5,2604.4,5.64025049]
[1751537616650,0.02,2604.5,2604.4,5.83145049]
[1751537617891,0.02,2604.5,2604.4,5.79305394]
[1751537618048,0.02,2604.5,2604.4,5.83145049]
[1751537618965,0.02,2604.5,2604.4,6.63365049]
[1751537619278,0.02,2604.5,2604.4,6.59525394]
[1751537620587,0.02,2604.5,2604.4,6.63365049]
[1751537620946,0.02,2604.5,2604.4,6.59525394]
[1751537621250,0.01,2604.7,2604.6,3.83936113]
[1751537621451,0.4595,2605.8,2604.7,0.7758]
[1751537621774,0.4595,2605.8,2605.2,3.83835927]
[1751537621956,0.4595,2605.8,2605.7,0.1912]
[1751537622480,0.4595,2605.8,2605.7,0.2295774]
[1751537622847,0.4595,2605.8,2605.7,0.1912]
[1751537624064,0.4595,2605.7,2604.9,3.8388925]
[1751537624392,0.4595,2605.7,2605.5,0.1912]
[1751537624578,0.4595,2605.5,2604.6,5.26670039]
[1751537624772,0.4595,2605.5,2605.3,0.1912]
[1751537627379,0.4595,2605.5,2605.4,0.03838182]
[1751537627771,0.4595,2605.5,2605.3,0.1912]
[1751537628089,0.4595,2605.5,2605.2,0.1912]
[1751537629449,0.4695,2605.5,2605.2,0.1912]
[1751537630986,0.4595,2605.2,2605.0,0.1912]
[1751537643492,0.4595,2605.2,2604.4,0.29079596]
[1751537643695,0.4595,2604.7,2604.4,0.1912]
[1751537644082,0.4595,2604.7,2604.6,0.02]
[1751537657834,0.1912,2604.8,2604.6,0.02]
[1751537658218,0.4595,2604.9,2604.6,0.02]
[1751537659730,0.2012,2605.2,2604.8,0.1912]
[1751537661680,0.01,2605.2,2604.7,0.7931]
[1751537661811,0.01,2605.2,2605.0,0.1912]
[1751537664936,7.56205966,2605.1,2604.6,0.02]
[1751537665230,0.4595,2605.1,2604.7,0.1912]
[1751537666717,0.4695,2605.1,2604.6,0.02]
[1751537666904,0.4695,2605.1,2604.9,0.1912]
[1751537667128,0.01,2605.1,2604.9,0.1912]
[1751537669633,0.01,2605.1,2604.9,0.9479]
[1751537669832,0.01,2605.1,2604.9,0.1912]
[1751537672138,0.4595,2605.0,2604.6,0.02]
[1751537672339,0.4595,2605.0,2604.7,0.1912]
[1751537673241,0.01,2605.1,2604.8,0.82739066]
[1751537673546,0.01,2605.1,2604.9,0.1912]
[1751537673917,0.01,2605.1,2605.0,0.03838771]
[1751537676663,0.01,2605.1,2604.9,0.1912]
[1751537680947,0.01,2605.1,2604.9,0.22958918]
[1751537684048,0.01,2605.1,2604.9,0.1912]
[1751537684243,0.4695,2605.1,2604.9,0.1912]
[1751537685467,7.57205966,2605.1,2604.9,0.1912]
[1751537685656,0.4595,2604.9,2604.6,0.02]
[1751537685848,7.29375966,2604.7,2604.6,0.02]
[1751537686349,7.75325966,2604.7,2604.6,0.02]
[1751537690240,7.76325966,2604.7,2604.6,0.02]
[1751537691569,8.12268953,2604.7,2604.6,0.02]
[1751537691787,19.93190325,2604.7,2604.6,0.02]
[1751537691993,20.84972466,2604.7,2604.6,0.02]
[1751537692584,20.84972466,2604.7,2604.5,0.02]
[1751537692585,4.29886113,2604.6,2604.5,0.02]
[1751537692881,13.54547131,2604.6,2604.5,0.02]
[1751537693087,12.628291,2604.6,2604.5,0.02]
[1751537693287,13.54509076,2604.6,2604.5,0.02]
[1751537694679,9.70572963,2604.6,2604.5,0.02]
[1751537695511,13.54509076,2604.6,2604.5,0.02]
[1751537696083,8.78892987,2604.6,2604.5,0.02]
[1751537696594,12.628291,2604.6,2604.5,0.02]
[1751537700780,12.62693122,2604.6,2604.5,0.02]
[1751537707119,13.54124941,2604.6,2604.5,0.02]
[1751537709420,13.54127026,2604.6,2604.5,0.02]
[1751537709620,3.83995084,2604.2,2604.1,0.02]
[1751537709823,0.192,2604.1,2603.5,0.02]
[1751537710002,4.49233576,2603.6,2603.5,0.02]
[1751537710201,4.85062808,2603.6,2603.5,0.02]
[1751537710400,0.4595,2603.3,2602.7,0.8244]
[1751537710616,0.192,2602.9,2602.7,0.8244]
[1751537710916,0.192,2602.9,2602.6,0.02]
[1751537711223,7.10255966,2602.7,2602.6,0.02]
[1751537711526,7.29455966,2602.7,2602.6,0.02]
[1751537714300,0.192,2602.7,2602.6,0.7872]
[1751537714501,0.192,2603.1,2602.6,0.9792]
[1751537714722,0.192,2603.1,2602.7,0.7672]
[1751537716203,7.29455966,2603.1,2602.7,0.7672]
[1751537716404,0.192,2603.0,2602.7,0.7672]
[1751537717127,7.56205966,2603.1,2602.6,0.02]
[1751537717334,7.10255966,2602.8,2602.6,0.02]
[1751537719945,11.07342623,2603.0,2602.6,0.02]
[1751537721403,4.30159735,2602.8,2602.6,0.02]
[1751537721603,0.4595,2602.8,2602.6,0.02]
[1751537721846,4.30161926,2602.8,2602.6,0.02]
[1751537722200,0.4595,2602.8,2602.6,0.02]
[1751537723733,3.8421639,2602.7,2602.6,0.02]
[1751537723939,4.30158169,2602.8,2602.6,0.02]
[1751537724233,3.8421639,2602.7,2602.6,0.02]
[1751537724439,4.30158139,2602.8,2602.6,0.02]
[1751537724734,3.8421639,2602.7,2602.6,0.02]
[1751537724928,4.3016639,2602.7,2602.6,0.02]
[1751537725741,4.65930492,2602.7,2602.6,0.02]
[1751537726224,4.3016639,2602.7,2602.6,0.02]
[1751537726425,4.65924519,2602.7,2602.6,0.02]
[1751537727817,27.10145624,2602.7,2602.6,0.02]
[1751537728015,3.84269128,2602.4,2601.9,0.02]
[1751537728335,11.07342623,2602.2,2601.9,0.02]
[1751537729042,8.4295,2602.3,2601.9,0.02]
[1751537729651,7.97,2602.3,2601.9,0.02]
[1751537732456,0.192,2602.2,2602.0,0.7528]
[1751537732755,7.97,2602.7,2602.0,0.7528]
[1751537732912,0.192,2602.4,2602.0,0.7528]
[1751537733446,11.07342623,2603.2,2602.2,0.7528]
[1751537733447,0.192,2602.6,2602.2,0.7528]
[1751537733928,0.192,2602.6,2602.2,1.23543363]
[1751537734136,0.192,2602.6,2602.3,0.7528]
[1751537734718,0.192,2602.7,2602.3,0.7528]
[1751537736120,7.97,2603.2,2602.3,0.7528]
[1751537736464,0.192,2603.0,2602.6,0.7528]
[1751537740663,8.4295,2603.2,2602.6,0.7528]
[1751537740864,0.192,2602.7,2602.6,0.7528]
[1751537742995,0.192,2602.9,2602.6,0.7528]
[1751537747969,0.01,2603.0,2602.6,0.7528]
[1751537748287,0.01,2603.0,2602.8,0.7674]
[1751537756486,0.01,2603.0,2602.7,0.192]
[1751537756687,0.01,2603.0,2602.6,0.7714]
[1751537756888,0.202,2603.0,2602.6,0.9634]
[1751537760019,0.01,2603.0,2602.6,0.7714]
[1751537760312,0.01,2603.0,2602.7,0.192]
[1751537767231,0.01,2603.0,2602.6,0.7714]
[1751537767517,0.01,2603.0,2602.5,0.212]
[1751537767518,0.202,2603.0,2602.5,0.212]
[1751537768023,0.4595,2602.9,2602.5,0.212]
[1751537768188,0.4595,2602.7,2602.5,0.02]
[1751537768387,8.6215,2602.6,2602.5,0.02]
[1751537769712,12.46381153,2602.6,2602.5,0.02]
[1751537769895,13.38220812,2602.6,2602.5,0.02]
[1751537772420,35.82444612,2602.6,2602.5,0.02]
[1751537773541,13.38220812,2602.6,2602.5,0.02]
[1751537773724,35.82444612,2602.6,2602.5,0.02]
[1751537773925,43.06067254,2602.6,2602.5,0.02]
[1751537774129,9.53989659,2602.6,2602.5,0.02]
[1751537774345,9.08039659,2602.6,2602.5,0.02]
[1751537774505,8.162,2602.6,2602.5,0.02]
[1751537775027,7.97,2602.6,2602.5,0.02]
[1751537775206,0.192,2602.8,2602.5,0.02]
[1751537780208,0.192,2602.6,2602.5,0.02]
[1751537787723,0.202,2602.6,2602.5,0.02]
[1751537789957,0.6615,2602.6,2602.5,0.02]
[1751537790546,4.50381153,2602.6,2602.5,0.02]